fUST/lending_fUST_20240127
["ID","MTS","AMOUNT","RATE_DAILY","PERIOD"]
[312848403,1706353840451,-151.0,0.000275,2]
[312848404,1706353840460,-151.0,0.000275,2]
[312848405,1706353840469,-621.83327323,0.00027613,2]
[312848406,1706353840478,-151.0,0.0002794,2]
[312848407,1706353840487,-556.2457431,0.00028,2]
[312848408,1706353840497,-151.0,0.00028657,2]
[312848409,1706353840505,-151.0,0.00028657,2]
[312848410,1706353840515,-150.321,0.00028793,2]
[312848411,1706353840525,-151.0,0.00028885,2]
[312848412,1706353840534,-620.09166366,0.00028993,2]
[312848413,1706353840543,-1933.42796518,0.00029,2]
[312848414,1706353840551,-155.01705188,0.00029,2]
[312848415,1706353840561,-309.84515485,0.00029242,2]
[312848416,1706353840570,-1189.57658954,0.00029242,2]
[312848417,1706353840579,-2011.26238282,0.00029242,2]
[312848418,1706353840588,-151.0,0.00029242,2]
[312848419,1706353840597,-151.0,0.00029242,2]
[312848420,1706353840606,-151.0,0.00029242,2]
[312848422,1706353840615,-151.0,0.00029242,2]
[312848423,1706353840683,-198.357408,0.00029242,2]
[312848424,1706353840699,-151.0,0.00029242,2]
[312848425,1706353840708,-151.0,0.00029242,2]
[312848426,1706353840717,-151.0,0.00029242,2]
[312848428,1706353840726,-204.858662,0.00029242,2]
[312848430,1706353840735,-280.082725,0.00029242,2]
[312848432,1706353840744,-6295.28277273,0.00029251,2]
[312848433,1706353840753,-220.3349061,0.00029251,2]
[312848435,1706353840763,-1000.0,0.0002935,3]
[312848436,1706353840772,-500.0,0.0002935,2]
[312848438,1706353840781,-172.73238116,0.0002935,2]
[312848440,1706353840791,-500.0,0.0002935,2]
[312848442,1706353840801,-500.0,0.0002935,2]
[312848444,1706353840810,-500.0,0.0002935,2]
[312848445,1706353840819,-500.0,0.0002935,2]
[312848446,1706353840828,-158.06765206,0.0002935,2]
[312848448,1706353840837,-500.0,0.0002935,2]
[312848450,1706353840846,-500.0,0.0002935,2]
[312848451,1706353840856,-500.0,0.0002935,2]
[312848452,1706353840866,-627.12567112,0.0002935,2]
[312848453,1706353840876,-500.0,0.0002935,2]
[312848455,1706353840886,-500.0,0.0002935,2]
[312848456,1706353840896,-500.0,0.0002935,2]
[312848457,1706353840910,-500.0,0.0002935,2]
[312848458,1706353840920,-388.85796531,0.0002935,2]
[312848459,1706353840931,-500.0,0.0002935,2]
[312848460,1706353840940,-500.0,0.0002935,2]
[312848462,1706353840950,-500.0,0.0002935,2]
[312848464,1706353840959,-500.0,0.0002935,2]
[312848466,1706353840970,-500.0,0.0002935,2]
[312848467,1706353840980,-500.0,0.0002935,2]
[312848468,1706353840990,-500.0,0.0002935,2]
[312848469,1706353840999,-500.0,0.0002935,2]
[312848470,1706353841008,-500.0,0.0002935,2]
[312848471,1706353841017,-500.0,0.0002935,2]
[312848472,1706353841026,-500.0,0.0002935,2]
[312848473,1706353841036,-500.0,0.0002935,2]
[312848474,1706353841046,-500.0,0.0002935,2]
[312848475,1706353841057,-500.0,0.0002935,2]
[312848476,1706353841066,-500.0,0.0002935,2]
[312848477,1706353841082,-500.0,0.0002935,2]
[312848478,1706353841091,-500.0,0.0002935,2]
[312848479,1706353841100,-500.0,0.0002935,2]
[312848480,1706353841109,-500.0,0.0002935,2]
[312848481,1706353841119,-500.0,0.0002935,2]
[312848482,1706353841130,-500.0,0.0002935,2]
[312848483,1706353841139,-500.0,0.0002935,2]
[312848484,1706353841150,-500.0,0.0002935,2]
[312848485,1706353841160,-4946.50452175,0.00029351,3]
[312848486,1706353841169,-21456.13214894,0.00029351,4]
[312848487,1706353841180,-26460.15425329,0.00029351,4]
[312848488,1706353841189,-11038.27561383,0.00029351,3]
[312848489,1706353841197,-67188.06952542,0.00029351,4]
[312848490,1706353841207,-50000.0,0.00029351,4]
[312848491,1706353841216,-12675.69900091,0.00029351,3]
[312848492,1706353841225,-5000.0,0.00029351,5]
[312848493,1706353841234,-7196.06854955,0.0002945,4]
[312848494,1706353841244,-1827.7377922,0.000295,2]
[312848495,1706353841253,-764.75702273,0.000295,2]
[312848496,1706353841263,-151.0,0.00029829,2]
[312848497,1706353841272,-1588.15392137,0.00029863,2]
[312848498,1706353841281,-281.54941248,0.0003,2]
[312848499,1706353841290,-5499.99999708,0.0003,2]
[312848500,1706353841299,-195.57103754,0.0003,2]
[312848501,1706353841309,-7129.18142788,0.00030036,3]
[312848502,1706353841318,-19175.26915314,0.00030038,4]
[312848503,1706353841328,-2373.62501968,0.00030039,2]
[312848504,1706353841337,-2444.5,0.000301,2]
[312848505,1706353841346,-2000.0,0.000301,2]
[312848506,1706353841355,-2000.0,0.0003011,2]
[312848507,1706353841364,-2000.0,0.0003012,2]
[312848508,1706353841373,-2000.0,0.0003013,2]
[312848509,1706353841383,-353.30385897,0.00030134,4]
[312848510,1706353841392,-685.78604026,0.00030136,4]
[312848511,1706353841401,-165.29707595,0.00030136,4]
[312848512,1706353841410,-500.0,0.00030136,2]
[312848513,1706353841419,-500.0,0.00030136,2]
[312848514,1706353841428,-500.0,0.00030136,2]
[312848515,1706353841438,-500.0,0.00030136,2]
[312848516,1706353841447,-500.0,0.00030136,2]
[312848517,1706353841456,-500.0,0.00030136,2]
[312848518,1706353841466,-500.0,0.00030136,2]
[312848519,1706353841474,-506.54743753,0.00030136,2]
[312848520,1706353841483,-500.0,0.00030136,2]
[312848521,1706353841492,-154.00011674,0.00030136,2]
[312848522,1706353841501,-500.0,0.00030136,2]
[312848523,1706353841510,-1000.54875464,0.00030136,2]
[312848524,1706353841519,-500.0,0.00030136,2]
[312848525,1706353841529,-500.0,0.00030136,2]
[312848526,1706353841538,-503.60518646,0.00030136,2]
[312848527,1706353841547,-1284.23,0.00030136,2]
[312848528,1706353841556,-1317.62,0.00030136,2]
[312848529,1706353841566,-500.0,0.00030136,2]
[312848530,1706353841574,-506.9897119,0.00030136,2]
[312848531,1706353841583,-155.0,0.00030136,2]
[312848532,1706353841592,-500.0,0.00030136,2]
[312848533,1706353841601,-500.0,0.00030136,2]
[312848534,1706353841610,-500.0,0.00030136,2]
[312848535,1706353841619,-500.0,0.00030136,2]
[312848536,1706353841628,-500.0,0.00030136,2]
[312848537,1706353841637,-500.0,0.00030136,2]
[312848539,1706353841646,-505.28549951,0.00030136,2]
[312848541,1706353841655,-2075.04,0.00030136,2]
[312848543,1706353841664,-500.0,0.00030136,2]
[312848545,1706353841673,-1124.19,0.00030136,2]
[312848547,1706353841682,-500.0,0.00030136,2]
[312848549,1706353841691,-546.1840453,0.00030136,2]
[312848551,1706353841700,-500.0,0.00030136,2]
[312848553,1706353841709,-151.98601287,0.00030136,2]
[312848555,1706353841718,-1436.27,0.00030136,2]
[312848557,1706353841728,-609.62693908,0.00030136,2]
[312848559,1706353841736,-500.0,0.00030136,2]
[312848561,1706353841745,-603.91728063,0.00030136,2]
[312848563,1706353841754,-500.0,0.00030136,2]
[312848565,1706353841763,-500.0,0.00030136,2]
[312848567,1706353841772,-550.10407402,0.00030136,2]
[312848569,1706353841781,-500.0,0.00030136,2]
[312848571,1706353841790,-500.0,0.00030136,2]
[312848572,1706353841799,-500.0,0.00030136,2]
[312848574,1706353841808,-500.0,0.00030136,2]
[312848576,1706353841817,-500.0,0.00030136,2]
[312848578,1706353841826,-500.0,0.00030136,2]
[312848580,1706353841835,-500.0,0.00030136,2]
[312848582,1706353841844,-500.0,0.00030136,2]
[312848584,1706353841853,-500.0,0.00030136,2]
[312848586,1706353841862,-500.0,0.00030136,2]
[312848588,1706353841870,-500.0,0.00030136,2]
[312848590,1706353841879,-500.0,0.00030136,2]
[312848592,1706353841888,-500.0,0.00030136,2]
[312848594,1706353841897,-500.0,0.00030136,2]
[312848596,1706353841909,-500.0,0.00030136,2]
[312848598,1706353841918,-500.0,0.00030136,2]
[312848600,1706353841927,-500.0,0.00030136,2]
[312848602,1706353841936,-500.0,0.00030136,2]
[312848604,1706353841945,-500.0,0.00030136,2]
[312848606,1706353841954,-500.0,0.00030136,2]
[312848608,1706353841962,-500.0,0.00030136,2]
[312848610,1706353841971,-500.0,0.00030136,2]
[312848612,1706353841982,-500.0,0.00030136,2]
[312848614,1706353841991,-500.0,0.00030136,2]
[312848616,1706353842000,-500.0,0.00030136,2]
[312848618,1706353842009,-584.94282053,0.00030136,2]
[312848619,1706353842017,-500.0,0.00030136,2]
[312848622,1706353842027,-500.0,0.00030136,2]
[312848623,1706353842036,-533.51635224,0.00030136,2]
[312848625,1706353842044,-500.0,0.00030136,2]
[312848627,1706353842054,-500.0,0.00030136,2]
[312848636,1706353842127,-500.0,0.00030136,2]
[312848638,1706353842136,-500.0,0.00030136,2]
[312848640,1706353842145,-500.0,0.00030136,2]
[312848642,1706353842154,-500.0,0.00030136,2]
[312848644,1706353842163,-500.0,0.00030136,2]
[312848646,1706353842173,-200.62236837,0.00030136,2]
[312848648,1706353842182,-500.0,0.00030136,2]
[312848650,1706353842191,-915.39,0.00030136,2]
[312848652,1706353842200,-500.0,0.00030136,2]
[312848654,1706353842209,-261.79310732,0.00030136,2]
[312848656,1706353842218,-500.0,0.00030136,2]
[312848658,1706353842227,-500.0,0.00030136,2]
[312848660,1706353842236,-500.0,0.00030136,2]
[312848662,1706353842245,-500.0,0.00030136,2]
[312848664,1706353842254,-500.0,0.00030136,2]
[312848666,1706353842263,-943.53,0.00030136,2]
[312848669,1706353842273,-500.0,0.00030136,2]
[312848670,1706353842282,-500.0,0.00030136,2]
[312848672,1706353842291,-522.85,0.00030136,2]
[312848674,1706353842300,-500.0,0.00030136,2]
[312848676,1706353842310,-500.0,0.00030136,2]
[312848678,1706353842319,-529.56,0.00030136,2]
[312848680,1706353842328,-500.0,0.00030136,2]
[312848682,1706353842337,-500.0,0.00030136,2]
[312848684,1706353842345,-500.0,0.00030136,2]
[312848686,1706353842354,-500.0,0.00030136,2]
[312848688,1706353842363,-588.01256134,0.00030136,2]
[312848690,1706353842373,-500.0,0.00030136,2]
[312848692,1706353842381,-500.0,0.00030136,2]
[312848694,1706353842391,-500.0,0.00030136,2]
[312848696,1706353842400,-5529.41,0.00030136,2]
[312848698,1706353842409,-500.0,0.00030136,2]
[312848700,1706353842418,-155.09844552,0.00030136,2]
[312848702,1706353842427,-500.0,0.00030136,2]
[312848704,1706353842436,-500.0,0.00030136,2]
[312848706,1706353842445,-724.6,0.00030136,2]
[312848708,1706353842454,-500.0,0.00030136,2]
[312848710,1706353842463,-600.0,0.00030136,2]
[312848712,1706353842471,-500.0,0.00030136,2]
[312848714,1706353842481,-500.0,0.00030136,2]
[312848716,1706353842490,-512.95858036,0.00030136,2]
[312848718,1706353842498,-500.0,0.00030136,2]
[312848720,1706353842507,-500.0,0.00030136,2]
[312848722,1706353842516,-500.0,0.00030136,2]
[312848724,1706353842526,-500.0,0.00030136,2]
[312848726,1706353842535,-1640.45,0.00030136,2]
[312848728,1706353842544,-500.0,0.00030136,2]
[312848730,1706353842553,-500.0,0.00030136,2]
[312848732,1706353842562,-500.0,0.00030136,2]
[312848734,1706353842571,-500.0,0.00030136,2]
[312848736,1706353842580,-560.48,0.00030136,2]
[312848738,1706353842589,-500.0,0.00030136,2]
[312848740,1706353842598,-500.0,0.00030136,2]
[312848741,1706353842607,-728.57,0.00030136,2]
[312848743,1706353842616,-500.0,0.00030136,2]
[312848745,1706353842625,-500.0,0.00030136,2]
[312848747,1706353842634,-183.59702284,0.00030136,2]
[312848749,1706353842643,-272.585389,0.00030137,2]
[312848751,1706353842653,-158.81503,0.00030137,2]
[312848753,1706353842662,-400.30246957,0.00030137,2]
[312848756,1706353842671,-2794.066118,0.0003014,2]
[312848757,1706353842680,-500.0,0.00030409,2]
[312848759,1706353842689,-500.0,0.00030409,2]
[312848761,1706353842698,-500.0,0.00030409,2]
[312848763,1706353842707,-500.0,0.00030409,2]
[312848765,1706353842716,-152.74755357,0.00030409,2]
[312848766,1706353842725,-500.0,0.0003041,2]
[312848767,1706353842733,-500.0,0.0003041,2]
[312848768,1706353842742,-500.0,0.0003041,2]
[312848769,1706353842751,-500.0,0.0003041,2]
[312848770,1706353842760,-500.0,0.0003041,2]
[312848771,1706353842769,-500.0,0.0003041,2]
[312848772,1706353842778,-500.0,0.0003041,2]
[312848773,1706353842787,-500.0,0.0003041,2]
[312848774,1706353842796,-500.0,0.0003041,2]
[312848775,1706353842805,-500.0,0.0003041,2]
[312848776,1706353842813,-1284.23,0.0003041,2]
[312848777,1706353842822,-1317.62,0.0003041,2]
[312848778,1706353842831,-500.0,0.0003041,2]
[312848779,1706353842840,-500.0,0.0003041,2]
[312848780,1706353842849,-269.72516088,0.0003041,2]
[312848781,1706353842858,-500.0,0.0003041,2]
[312848782,1706353842867,-500.0,0.0003041,2]
[312848783,1706353842876,-500.0,0.0003041,2]
[312848784,1706353842885,-500.0,0.0003041,2]
[312848785,1706353842895,-2075.04,0.0003041,2]
[312848786,1706353842910,-592.72488958,0.0003041,2]
[312848787,1706353842919,-1124.19,0.0003041,2]
[312848788,1706353842928,-500.0,0.0003041,2]
[312848789,1706353842937,-500.0,0.0003041,2]
[312848790,1706353842947,-1436.27,0.0003041,2]
[312848791,1706353842955,-500.0,0.0003041,2]
[312848792,1706353842964,-557.90262647,0.0003041,2]
[312848793,1706353842973,-500.0,0.0003041,2]
[312848795,1706353842983,-439.13384058,0.0003041,2]
[312848796,1706353842992,-500.0,0.0003041,2]
[312848797,1706353843001,-500.0,0.0003041,2]
[312848798,1706353843010,-500.0,0.0003041,2]
[312848799,1706353843018,-500.0,0.0003041,2]
[312848800,1706353843027,-192.65074349,0.0003041,2]
[312848802,1706353843037,-500.0,0.0003041,2]
[312848804,1706353843046,-500.0,0.0003041,2]
[312848805,1706353843054,-500.0,0.0003041,2]
[312848806,1706353843064,-500.0,0.0003041,2]
[312848807,1706353843072,-500.0,0.0003041,2]
[312848808,1706353843082,-500.0,0.0003041,2]
[312848809,1706353843091,-500.0,0.0003041,2]
[312848810,1706353843100,-384.94573799,0.0003041,2]
[312848811,1706353843109,-500.0,0.0003041,2]
[312848812,1706353843118,-915.39,0.0003041,2]
[312848814,1706353843127,-500.0,0.0003041,2]
[312848815,1706353843136,-500.0,0.0003041,2]
[312848817,1706353843145,-500.0,0.0003041,2]
[312848819,1706353843154,-500.0,0.0003041,2]
[312848821,1706353843163,-497.28316488,0.0003041,2]
[312848822,1706353843172,-500.0,0.0003041,2]
[312848823,1706353843180,-943.53,0.0003041,2]
[312848824,1706353843189,-500.0,0.0003041,2]
[312848825,1706353843198,-500.0,0.0003041,2]
[312848826,1706353843207,-522.85,0.0003041,2]
[312848827,1706353843216,-500.0,0.0003041,2]
[312848828,1706353843225,-500.0,0.0003041,2]
[312848829,1706353843234,-529.56,0.0003041,2]
[312848830,1706353843243,-500.0,0.0003041,2]
[312848831,1706353843252,-500.0,0.0003041,2]
[312848832,1706353843261,-500.0,0.0003041,2]
[312848833,1706353843270,-500.0,0.0003041,2]
[312848834,1706353843278,-500.0,0.0003041,2]
[312848835,1706353843287,-500.0,0.0003041,2]
[312848836,1706353843296,-500.0,0.0003041,2]
[312848837,1706353843306,-5529.41,0.0003041,2]
[312848838,1706353843315,-534.56801272,0.0003041,2]
[312848839,1706353843324,-500.0,0.0003041,2]
[312848840,1706353843334,-500.0,0.0003041,2]
[312848841,1706353843342,-724.6,0.0003041,2]
[312848842,1706353843414,-500.0,0.0003041,2]
[312848843,1706353843423,-500.0,0.0003041,2]
[312848844,1706353843432,-500.0,0.0003041,2]
[312848845,1706353843441,-500.0,0.0003041,2]
[312848846,1706353843450,-500.0,0.0003041,2]
[312848847,1706353843459,-500.0,0.0003041,2]
[312848848,1706353843468,-1640.45,0.0003041,2]
[312848849,1706353843477,-500.0,0.0003041,2]
[312848850,1706353843486,-500.0,0.0003041,2]
[312848851,1706353843496,-512.50415817,0.0003041,2]
[312848852,1706353843505,-500.0,0.0003041,2]
[312848853,1706353843515,-560.48,0.0003041,2]
[312848854,1706353843525,-500.0,0.0003041,2]
[312848855,1706353843534,-500.0,0.0003041,2]
[312848856,1706353843543,-728.57,0.0003041,2]
[312848857,1706353843552,-500.0,0.0003041,2]
[312848858,1706353843561,-500.0,0.0003041,2]
[312848859,1706353843571,-620.00458318,0.00030443,2]
[312848860,1706353843581,-573.74982233,0.00030525,5]
[312848861,1706353843590,-649.86107879,0.00030525,4]
[312848862,1706353843599,-77365.87930664,0.00030525,2]
[312848863,1706353843608,-500.0,0.0003062,3]
[312848864,1706353843617,-500.0,0.0003062,3]
[312848865,1706353843626,-500.0,0.0003064,3]
[312848866,1706353843635,-500.0,0.0003064,3]
[312848867,1706353843643,-500.0,0.0003066,3]
[312848868,1706353843652,-500.0,0.0003066,3]
[312848869,1706353843661,-500.0,0.0003068,3]
[312848870,1706353843670,-500.0,0.0003068,3]
[312848871,1706353843678,-500.0,0.00030684,2]
[312848872,1706353843688,-500.0,0.00030684,2]
[312848873,1706353843697,-500.0,0.00030684,2]
[312848874,1706353843706,-500.0,0.00030684,2]
[312848875,1706353843716,-553.79981414,0.00030684,2]
[312848876,1706353843725,-500.0,0.00030684,2]
[312848877,1706353843734,-500.0,0.00030684,2]
[312848878,1706353843742,-500.0,0.00030684,2]
[312848879,1706353843752,-500.0,0.00030684,2]
[312848880,1706353843761,-500.0,0.00030684,2]
[312848881,1706353843770,-1284.23,0.00030684,2]
[312848882,1706353843779,-1317.62,0.00030684,2]
[312848883,1706353843788,-500.0,0.00030684,2]
[312848884,1706353843797,-500.0,0.00030684,2]
[312848885,1706353843806,-500.0,0.00030684,2]
[312848886,1706353843815,-500.0,0.00030684,2]
[312848887,1706353843824,-500.0,0.00030684,2]
[312848888,1706353843833,-500.0,0.00030684,2]
[312848889,1706353843842,-2075.04,0.00030684,2]
[312848890,1706353843851,-1124.19,0.00030684,2]
[312848891,1706353843860,-500.0,0.00030684,2]
[312848892,1706353843868,-500.0,0.00030684,2]
[312848893,1706353843877,-1436.27,0.00030684,2]
[312848894,1706353843887,-500.0,0.00030684,2]
[312848895,1706353843896,-500.0,0.00030684,2]
[312848896,1706353843908,-500.0,0.00030684,2]
[312848897,1706353843918,-500.0,0.00030684,2]
[312848898,1706353843926,-500.0,0.00030684,2]
[312848899,1706353843935,-306.61062536,0.00030684,2]
[312848900,1706353843945,-500.0,0.00030684,2]
[312848901,1706353843954,-500.0,0.00030684,2]
[312848902,1706353843963,-500.0,0.00030684,2]
[312848903,1706353843972,-500.0,0.00030684,2]
[312848905,1706353843984,-500.0,0.00030684,2]
[312848906,1706353843995,-500.0,0.00030684,2]
[312848908,1706353844004,-500.0,0.00030684,2]
[312848910,1706353844013,-500.0,0.00030684,2]
[312848912,1706353844022,-915.39,0.00030684,2]
[312848914,1706353844031,-505.07707639,0.00030684,2]
[312848916,1706353844041,-500.0,0.00030684,2]
[312848918,1706353844050,-500.0,0.00030684,2]
[312848919,1706353844059,-500.0,0.00030684,2]
[312848921,1706353844070,-500.0,0.00030684,2]
[312848923,1706353844079,-943.53,0.00030684,2]
[312848925,1706353844089,-639.26090774,0.00030684,2]
[312848927,1706353844098,-500.0,0.00030684,2]
[312848929,1706353844108,-522.85,0.00030684,2]
[312848931,1706353844117,-500.0,0.00030684,2]
[312848932,1706353844126,-500.0,0.00030684,2]
[312848934,1706353844136,-529.56,0.00030684,2]
[312848936,1706353844145,-500.0,0.00030684,2]
[312848938,1706353844154,-500.0,0.00030684,2]
[312848940,1706353844164,-500.0,0.00030684,2]
[312848942,1706353844173,-500.0,0.00030684,2]
[312848944,1706353844182,-500.0,0.00030684,2]
[312848946,1706353844192,-500.0,0.00030684,2]
[312848948,1706353844201,-318.19814836,0.00030684,2]
[312848950,1706353844211,-5529.41,0.00030684,2]
[312848951,1706353844219,-500.0,0.00030684,2]
[312848953,1706353844228,-500.0,0.00030684,2]
[312848955,1706353844238,-724.6,0.00030684,2]
[312848957,1706353844247,-506.65761123,0.00030684,2]
[312848959,1706353844258,-500.0,0.00030684,2]
[312848961,1706353844267,-517.51727918,0.00030684,2]
[312848963,1706353844276,-500.0,0.00030684,2]
[312848965,1706353844285,-500.0,0.00030684,2]
[312848967,1706353844294,-500.0,0.00030684,2]
[312848969,1706353844303,-1640.45,0.00030684,2]
[312848971,1706353844312,-500.0,0.00030684,2]
[312848973,1706353844322,-500.0,0.00030684,2]
[312848975,1706353844331,-500.0,0.00030684,2]
[312848977,1706353844340,-560.48,0.00030684,2]
[312848979,1706353844349,-500.0,0.00030684,2]
[312848981,1706353844358,-500.0,0.00030684,2]
[312848983,1706353844367,-728.57,0.00030684,2]
[312848985,1706353844376,-500.0,0.00030684,2]
[312848987,1706353844386,-500.0,0.00030684,2]
[312848989,1706353844395,-500.0,0.000307,3]
[312848991,1706353844404,-500.0,0.000307,3]
[312848993,1706353844413,-500.0,0.0003072,3]
[312848995,1706353844422,-500.0,0.0003072,3]
[312848997,1706353844431,-500.0,0.0003074,3]
[312848999,1706353844440,-500.0,0.0003074,3]
[312849001,1706353844449,-500.0,0.0003076,3]
[312849003,1706353844458,-500.0,0.0003076,3]
[312849004,1706353844468,-151.0,0.00030774,2]
[312849006,1706353844477,-500.0,0.0003078,3]
[312849008,1706353844486,-500.0,0.0003078,3]
[312849010,1706353844495,-500.0,0.000308,3]
[312849012,1706353844504,-500.0,0.000308,3]
[312849014,1706353844513,-500.0,0.0003082,3]
[312849017,1706353844523,-500.0,0.0003082,3]
[312849019,1706353844533,-500.0,0.0003084,3]
[312849021,1706353844543,-500.0,0.0003084,3]
[312849023,1706353844553,-500.0,0.0003086,3]
[312849031,1706353844618,-500.0,0.0003086,3]
[312849033,1706353844632,-500.0,0.0003088,3]
[312849035,1706353844641,-500.0,0.0003088,3]
[312849037,1706353844651,-500.0,0.000309,3]
[312849039,1706353844660,-500.0,0.000309,3]
[312849041,1706353844669,-500.0,0.0003092,3]
[312849043,1706353844678,-500.0,0.0003092,3]
[312849045,1706353844688,-500.0,0.0003094,3]
[312849046,1706353844696,-500.0,0.0003094,3]
[312849047,1706353844706,-609.07027125,0.00030958,2]
[312849048,1706353844715,-500.0,0.00030958,2]
[312849049,1706353844724,-500.0,0.00030958,2]
[312849050,1706353844733,-500.0,0.00030958,2]
[312849051,1706353844742,-393.17064351,0.00030958,2]
[312849052,1706353844751,-500.0,0.00030958,2]
[312849053,1706353844760,-500.0,0.00030958,2]
[312849054,1706353844769,-500.0,0.00030958,2]
[312849055,1706353844778,-500.0,0.00030958,2]
[312849056,1706353844787,-1284.23,0.00030958,2]
[312849057,1706353844796,-1317.62,0.00030958,2]
[312849059,1706353844806,-500.0,0.00030958,2]
[312849060,1706353844816,-500.0,0.00030958,2]
[312849063,1706353844825,-500.0,0.00030958,2]
[312849064,1706353844835,-438.24282145,0.00030958,2]
[312849066,1706353844844,-500.0,0.00030958,2]
[312849068,1706353844855,-500.0,0.00030958,2]
[312849071,1706353844865,-2075.04,0.00030958,2]
[312849073,1706353844875,-1124.19,0.00030958,2]
[312849075,1706353844884,-500.0,0.00030958,2]
[312849077,1706353844894,-506.14834637,0.00030958,2]
[312849079,1706353844906,-1436.27,0.00030958,2]
[312849081,1706353844915,-500.0,0.00030958,2]
[312849083,1706353844925,-500.0,0.00030958,2]
[312849085,1706353844933,-500.0,0.00030958,2]
[312849087,1706353844942,-500.0,0.00030958,2]
[312849089,1706353844952,-500.0,0.00030958,2]
[312849091,1706353844961,-500.0,0.00030958,2]
[312849093,1706353844970,-500.0,0.00030958,2]
[312849095,1706353844981,-500.0,0.00030958,2]
[312849097,1706353844990,-500.0,0.00030958,2]
[312849098,1706353844999,-500.0,0.00030958,2]
[312849101,1706353845009,-500.0,0.00030958,2]
[312849103,1706353845018,-500.0,0.00030958,2]
[312849105,1706353845028,-500.0,0.00030958,2]
[312849107,1706353845038,-915.39,0.00030958,2]
[312849109,1706353845047,-500.0,0.00030958,2]
[312849111,1706353845056,-500.0,0.00030958,2]
[312849113,1706353845065,-500.0,0.00030958,2]
[312849115,1706353845074,-510.65878039,0.00030958,2]
[312849116,1706353845085,-943.53,0.00030958,2]
[312849118,1706353845094,-500.0,0.00030958,2]
[312849120,1706353845103,-522.85,0.00030958,2]
[312849122,1706353845113,-500.0,0.00030958,2]
[312849125,1706353845122,-500.0,0.00030958,2]
[312849127,1706353845131,-529.56,0.00030958,2]
[312849129,1706353845141,-500.0,0.00030958,2]
[312849130,1706353845150,-500.0,0.00030958,2]
[312849132,1706353845159,-500.0,0.00030958,2]
[312849134,1706353845168,-500.0,0.00030958,2]
[312849137,1706353845178,-500.0,0.00030958,2]
[312849138,1706353845191,-500.0,0.00030958,2]
[312849141,1706353845202,-5529.41,0.00030958,2]
[312849142,1706353845211,-500.0,0.00030958,2]
[312849145,1706353845220,-500.0,0.00030958,2]
[312849147,1706353845229,-724.6,0.00030958,2]
[312849149,1706353845238,-500.0,0.00030958,2]
[312849151,1706353845247,-500.0,0.00030958,2]
[312849153,1706353845257,-500.0,0.00030958,2]
[312849155,1706353845266,-500.0,0.00030958,2]
[312849156,1706353845275,-1640.45,0.00030958,2]
[312849158,1706353845284,-500.0,0.00030958,2]
[312849160,1706353845293,-500.0,0.00030958,2]
[312849162,1706353845302,-500.0,0.00030958,2]
[312849164,1706353845311,-560.48,0.00030958,2]
[312849166,1706353845320,-500.0,0.00030958,2]